fUST/lending_fUST_20250118
["ID","MTS","AMOUNT","RATE_DAILY","PERIOD"]
[349393086,1737153064187,-500.0,0.00022602,3]
[349393087,1737153064197,-608.08,0.00022602,3]
[349393088,1737153064207,-151.0,0.00022602,7]
[349393089,1737153064216,-500.0,0.00022602,3]
[349393090,1737153064226,-500.0,0.00022602,3]
[349393091,1737153064236,-570.70880507,0.00022602,3]
[349393092,1737153064245,-500.0,0.00022602,3]
[349393093,1737153064254,-1298.93,0.00022602,3]
[349393094,1737153064264,-500.0,0.00022602,3]
[349393095,1737153064273,-500.0,0.00022602,3]
[349393096,1737153064283,-500.0,0.00022602,3]
[349393097,1737153064293,-500.0,0.00022602,3]
[349393098,1737153064303,-500.0,0.00022602,3]
[349393099,1737153064313,-629.53,0.00022602,3]
[349393100,1737153064322,-1197.63,0.00022602,3]
[349393101,1737153064332,-500.0,0.00022602,3]
[349393102,1737153064342,-586.78,0.00022602,3]
[349393103,1737153064351,-621.42,0.00022602,3]
[349393104,1737153064361,-281.16817966,0.00022608,2]
[349393105,1737153064370,-504.23180366,0.00022621,2]
[349393106,1737153064380,-925.63002472,0.00022659,3]
[349393107,1737153064389,-420.0,0.00022665,2]
[349393108,1737153064399,-500.0,0.00022695,2]
[349393109,1737153064409,-268.52365937,0.00022695,2]
[349393110,1737153064421,-151.0,0.000227,10]
[349393111,1737153064431,-151.0,0.00022713,7]
[349393112,1737153064440,-2068.0,0.00022713,2]
[349393113,1737153064450,-536.0,0.00022713,2]
[349393114,1737153064462,-2310.0,0.00022713,2]
[349393115,1737153064471,-395.0,0.00022713,2]
[349393116,1737153064481,-925.63002472,0.00022728,3]
[349393117,1737153064491,-500.0,0.00022739,3]
[349393118,1737153064500,-500.0,0.00022739,3]
[349393119,1737153064511,-500.0,0.00022739,3]
[349393120,1737153064520,-151.0,0.00022739,7]
[349393121,1737153064530,-211.373992,0.00022739,7]
[349393122,1737153064539,-151.0,0.00022739,7]
[349393123,1737153064549,-500.0,0.00022739,3]
[349393124,1737153064559,-176.32276715,0.00022739,3]
[349393125,1737153064569,-500.0,0.00022739,3]
[349393126,1737153064578,-407.89714524,0.00022739,3]
[349393127,1737153064588,-500.0,0.00022739,3]
[349393128,1737153064598,-500.0,0.00022739,3]
[349393129,1737153064607,-500.0,0.00022739,3]
[349393130,1737153064616,-184.9962126,0.00022739,3]
[349393131,1737153064626,-500.0,0.00022739,3]
[349393132,1737153064636,-187.27,0.00022739,3]
[349393133,1737153064646,-151.0,0.00022739,7]
[349393134,1737153064656,-500.0,0.00022739,3]
[349393135,1737153064665,-173.165989,0.00022739,7]
[349393136,1737153064675,-173.165989,0.00022739,7]
[349393137,1737153064684,-500.0,0.00022739,3]
[349393138,1737153064694,-500.0,0.00022739,3]
[349393139,1737153064703,-500.0,0.00022739,3]
[349393140,1737153064713,-500.0,0.00022739,3]
[349393141,1737153064722,-500.0,0.00022739,3]
[349393142,1737153064731,-596.85111797,0.00022739,3]
[349393143,1737153064741,-500.0,0.00022739,3]
[349393144,1737153064750,-500.0,0.00022739,3]
[349393145,1737153064759,-500.0,0.00022739,3]
[349393146,1737153064768,-500.0,0.00022739,3]
[349393147,1737153064777,-500.0,0.00022739,3]
[349393148,1737153064786,-500.0,0.00022739,3]
[349393149,1737153064796,-537.913445,0.00022739,2]
[349393150,1737153064806,-166.404852,0.00022739,7]
[349393151,1737153064815,-537.913445,0.00022739,2]
[349393152,1737153064825,-500.0,0.00022739,2]
[349393153,1737153064834,-500.0,0.00022739,3]
[349393154,1737153064844,-500.0,0.00022739,3]
[349393155,1737153064853,-181.086533,0.00022739,7]
[349393156,1737153064862,-151.0,0.00022739,7]
[349393157,1737153064872,-500.0,0.00022739,3]
[349393158,1737153064882,-181.086533,0.00022739,7]
[349393159,1737153064892,-500.0,0.00022739,3]
[349393160,1737153064902,-242.841273,0.00022739,7]
[349393161,1737153064911,-500.0,0.00022739,3]
[349393162,1737153064922,-500.0,0.00022739,3]
[349393163,1737153064931,-391.526914,0.00022739,7]
[349393164,1737153064941,-1082.785434,0.00022739,7]
[349393165,1737153064950,-1082.785434,0.00022739,7]
[349393166,1737153064959,-391.526914,0.00022739,7]
[349393167,1737153064969,-212.032668,0.00022739,7]
[349393168,1737153064978,-500.0,0.00022739,3]
[349393169,1737153064987,-212.032668,0.00022739,7]
[349393170,1737153064996,-500.0,0.00022739,3]
[349393171,1737153065006,-500.0,0.00022739,3]
[349393172,1737153065015,-500.0,0.00022739,3]
[349393173,1737153065025,-509.44,0.00022739,3]
[349393174,1737153065035,-500.0,0.00022739,3]
[349393175,1737153065044,-500.0,0.00022739,3]
[349393176,1737153065127,-507.2671052,0.00022739,3]
[349393177,1737153065136,-612.96291,0.00022739,7]
[349393178,1737153065145,-500.0,0.00022739,3]
[349393179,1737153065155,-612.96291,0.00022739,7]
[349393180,1737153065165,-151.0,0.00022739,7]
[349393181,1737153065175,-500.0,0.00022739,3]
[349393182,1737153065184,-225.46587,0.00022739,7]
[349393183,1737153065193,-615.32,0.00022739,3]
[349393184,1737153065202,-500.0,0.00022739,3]
[349393185,1737153065211,-1370.88,0.00022739,3]
[349393186,1737153065220,-509.12,0.00022739,3]
[349393187,1737153065229,-500.0,0.00022739,3]
[349393188,1737153065239,-500.0,0.00022739,3]
[349393189,1737153065248,-1583.99,0.00022739,3]
[349393190,1737153065257,-318.57,0.00022739,3]
[349393191,1737153065266,-500.0,0.00022739,3]
[349393192,1737153065275,-492.946776,0.00022739,7]
[349393193,1737153065284,-492.946776,0.00022739,7]
[349393194,1737153065293,-619.99555382,0.00022739,3]
[349393195,1737153065302,-500.0,0.00022739,3]
[349393196,1737153065311,-3204.95,0.00022739,3]
[349393197,1737153065320,-500.0,0.00022739,2]
[349393198,1737153065330,-500.0,0.00022739,3]
[349393199,1737153065339,-969.31,0.00022739,3]
[349393200,1737153065347,-151.569278,0.00022739,7]
[349393201,1737153065357,-3816.49,0.00022739,3]
[349393202,1737153065366,-500.0,0.00022739,3]
[349393203,1737153065375,-151.569278,0.00022739,7]
[349393204,1737153065385,-151.0,0.00022739,7]
[349393205,1737153065394,-500.0,0.00022739,3]
[349393206,1737153065403,-500.0,0.00022739,3]
[349393207,1737153065414,-151.0,0.00022739,7]
[349393208,1737153065426,-500.0,0.00022739,3]
[349393209,1737153065436,-500.0,0.00022739,3]
[349393210,1737153065445,-500.0,0.00022739,3]
[349393211,1737153065455,-500.0,0.00022739,3]
[349393212,1737153065466,-500.0,0.00022739,3]
[349393213,1737153065475,-500.0,0.00022739,3]
[349393214,1737153065485,-500.0,0.00022739,3]
[349393215,1737153065496,-1113.84,0.00022739,3]
[349393216,1737153065506,-500.0,0.00022739,3]
[349393217,1737153065515,-545.779231,0.00022739,7]
[349393218,1737153065525,-545.779231,0.00022739,7]
[349393219,1737153065534,-500.0,0.00022739,3]
[349393220,1737153065543,-1357.5,0.00022739,3]
[349393221,1737153065553,-524.78,0.00022739,3]
[349393222,1737153065562,-500.0,0.00022739,3]
[349393223,1737153065572,-2784.49,0.00022739,3]
[349393224,1737153065582,-500.0,0.00022739,3]
[349393225,1737153065591,-1042.72,0.00022739,3]
[349393226,1737153065601,-919.12,0.00022739,3]
[349393227,1737153065610,-500.0,0.00022739,3]
[349393228,1737153065620,-500.0,0.00022739,3]
[349393229,1737153065629,-500.0,0.00022739,3]
[349393230,1737153065638,-500.0,0.00022739,3]
[349393231,1737153065647,-500.0,0.00022739,3]
[349393232,1737153065657,-580.86,0.00022739,3]
[349393233,1737153065666,-500.0,0.00022739,3]
[349393234,1737153065677,-500.0,0.00022739,3]
[349393235,1737153065686,-1298.93,0.00022739,3]
[349393236,1737153065696,-500.0,0.00022739,3]
[349393237,1737153065706,-500.0,0.00022739,3]
[349393238,1737153065715,-500.0,0.00022739,3]
[349393239,1737153065725,-500.0,0.00022739,3]
[349393240,1737153065734,-500.0,0.00022739,3]
[349393241,1737153065743,-629.53,0.00022739,3]
[349393242,1737153065753,-1197.63,0.00022739,3]
[349393243,1737153065762,-500.0,0.00022739,3]
[349393244,1737153065772,-586.78,0.00022739,3]
[349393245,1737153065781,-621.42,0.00022739,3]
[349393246,1737153065791,-353.5775999,0.00022795,2]
[349393247,1737153065800,-353.5775999,0.00022795,2]
[349393248,1737153065809,-925.63002472,0.00022797,3]
[349393249,1737153065819,-365.8614014,0.00022822,2]
[349393250,1737153065828,-925.63002472,0.00022866,3]
[349393251,1737153065837,-281.16817966,0.00022871,2]
[349393252,1737153065846,-500.0,0.00022876,3]
[349393253,1737153065856,-500.0,0.00022876,3]
[349393254,1737153065866,-151.0,0.00022876,7]
[349393255,1737153065876,-500.0,0.00022876,3]
[349393256,1737153065885,-151.0,0.00022876,7]
[349393257,1737153065895,-500.0,0.00022876,3]
[349393258,1737153065905,-500.0,0.00022876,3]
[349393259,1737153065915,-619.292312,0.00022876,7]
[349393260,1737153065924,-619.292312,0.00022876,7]
[349393261,1737153065934,-601.48873845,0.00022876,3]
[349393262,1737153065943,-277.472178,0.00022876,7]
[349393263,1737153065952,-277.472178,0.00022876,7]
[349393264,1737153065961,-341.830555,0.00022876,7]
[349393265,1737153065971,-341.830555,0.00022876,7]
[349393266,1737153065980,-500.0,0.00022876,3]
[349393267,1737153065989,-500.0,0.00022876,3]
[349393268,1737153065999,-500.0,0.00022876,3]
[349393269,1737153066009,-500.0,0.00022876,3]
[349393270,1737153066019,-500.0,0.00022876,3]
[349393271,1737153066030,-500.0,0.00022876,3]
[349393272,1737153066039,-500.0,0.00022876,3]
[349393273,1737153066049,-500.0,0.00022876,3]
[349393274,1737153066058,-500.0,0.00022876,3]
[349393275,1737153066068,-500.0,0.00022876,3]
[349393276,1737153066079,-500.0,0.00022876,3]
[349393277,1737153066089,-500.0,0.00022876,3]
[349393278,1737153066098,-507.10719409,0.00022876,2]
[349393279,1737153066108,-500.0,0.00022876,3]
[349393280,1737153066117,-500.0,0.00022876,3]
[349393281,1737153066127,-500.0,0.00022876,3]
[349393282,1737153066136,-500.0,0.00022876,3]
[349393283,1737153066145,-500.0,0.00022876,3]
[349393284,1737153066155,-500.0,0.00022876,3]
[349393285,1737153066164,-500.0,0.00022876,3]
[349393286,1737153066173,-500.0,0.00022876,3]
[349393287,1737153066182,-500.0,0.00022876,3]
[349393288,1737153066191,-383.58500899,0.00022876,3]
[349393289,1737153066201,-509.44,0.00022876,3]
[349393290,1737153066211,-500.0,0.00022876,3]
[349393291,1737153066220,-363.6839815,0.00022876,3]
[349393292,1737153066230,-500.0,0.00022876,3]
[349393293,1737153066239,-500.0,0.00022876,3]
[349393294,1737153066249,-500.0,0.00022876,3]
[349393295,1737153066258,-1370.88,0.00022876,3]
[349393296,1737153066268,-509.12,0.00022876,3]
[349393297,1737153066277,-500.0,0.00022876,3]
[349393298,1737153066288,-500.0,0.00022876,3]
[349393299,1737153066298,-1583.99,0.00022876,3]
[349393300,1737153066307,-500.0,0.00022876,3]
[349393301,1737153066317,-500.0,0.00022876,3]
[349393302,1737153066326,-3204.95,0.00022876,3]
[349393303,1737153066335,-500.0,0.00022876,2]
[349393304,1737153066345,-500.0,0.00022876,3]
[349393305,1737153066355,-969.31,0.00022876,3]
[349393306,1737153066364,-3816.49,0.00022876,3]
[349393307,1737153066374,-500.0,0.00022876,3]
[349393308,1737153066383,-500.0,0.00022876,3]
[349393309,1737153066393,-500.0,0.00022876,3]
[349393310,1737153066403,-500.0,0.00022876,3]
[349393311,1737153066412,-500.0,0.00022876,3]
[349393312,1737153066426,-500.0,0.00022876,3]
[349393313,1737153066435,-500.0,0.00022876,3]
[349393314,1737153066444,-500.0,0.00022876,3]
[349393315,1737153066453,-500.0,0.00022876,3]
[349393316,1737153066463,-500.0,0.00022876,3]
[349393317,1737153066472,-1113.84,0.00022876,3]
[349393318,1737153066483,-500.0,0.00022876,3]
[349393319,1737153066493,-216.27779501,0.00022876,3]
[349393320,1737153066503,-1357.5,0.00022876,3]
[349393321,1737153066512,-524.78,0.00022876,3]
[349393322,1737153066590,-500.0,0.00022876,3]
[349393323,1737153066601,-2784.49,0.00022876,3]
[349393324,1737153066610,-500.0,0.00022876,3]
[349393325,1737153066620,-1042.72,0.00022876,3]
[349393326,1737153066629,-919.12,0.00022876,3]
[349393327,1737153066638,-500.0,0.00022876,3]
[349393328,1737153066649,-500.0,0.00022876,3]
[349393329,1737153066659,-500.0,0.00022876,3]
[349393330,1737153066670,-500.0,0.00022876,3]
[349393331,1737153066680,-500.0,0.00022876,3]
[349393332,1737153066690,-500.0,0.00022876,3]
[349393333,1737153066699,-500.0,0.00022876,3]
[349393334,1737153066709,-1298.93,0.00022876,3]
[349393335,1737153066718,-500.0,0.00022876,3]
[349393336,1737153066727,-500.0,0.00022876,3]
[349393337,1737153066737,-500.0,0.00022876,3]
[349393338,1737153066746,-500.0,0.00022876,3]
[349393339,1737153066756,-629.53,0.00022876,3]
[349393340,1737153066765,-1197.63,0.00022876,3]
[349393341,1737153066774,-500.0,0.00022876,3]
[349393342,1737153066784,-586.78,0.00022876,3]
[349393343,1737153066794,-621.42,0.00022876,3]
[349393344,1737153066803,-500.0,0.0002288,2]
[349393345,1737153066813,-1000.0,0.00022921,2]
[349393346,1737153066823,-1000.0,0.00022921,2]
[349393347,1737153066832,-157.985003,0.00022932,2]
[349393348,1737153066842,-925.63002472,0.00022934,3]
[349393349,1737153066852,-153.0,0.00022959,2]
[349393350,1737153066862,-201.010693,0.00022959,2]
[349393351,1737153066871,-262.2038945,0.00022959,2]
[349393352,1737153066881,-327.1792967,0.00022959,2]
[349393353,1737153066891,-250.8754565,0.00022959,2]
[349393354,1737153066902,-154.0316351,0.00022959,2]
[349393355,1737153066911,-215.0538638,0.00022959,2]
[349393356,1737153066923,-215.0538638,0.00022959,2]
[349393357,1737153066933,-153.0,0.00022959,2]
[349393358,1737153066943,-154.0316351,0.00022959,2]
[349393359,1737153066952,-154.0316351,0.00022959,2]
[349393360,1737153066962,-215.0538638,0.00022959,2]
[349393361,1737153066971,-153.0,0.00022959,2]
[349393362,1737153066981,-215.0538638,0.00022959,2]
[349393363,1737153066990,-154.0316351,0.00022959,2]
[349393364,1737153066999,-215.0538638,0.00022959,2]
[349393365,1737153067008,-154.0316351,0.00022959,2]
[349393366,1737153067018,-153.0,0.00022959,2]
[349393367,1737153067027,-429.5672086,0.00022959,2]
[349393368,1737153067037,-154.0316351,0.00022959,2]
[349393369,1737153067047,-154.0316351,0.00022959,2]
[349393370,1737153067056,-153.0,0.00022959,2]
[349393371,1737153067066,-154.0316351,0.00022959,2]
[349393372,1737153067075,-154.0316351,0.00022959,2]
[349393373,1737153067085,-7438.69753278,0.00023,2]
[349393374,1737153067094,-300.0,0.00023,10]
[349393375,1737153067103,-151.0,0.00023,7]
[349393376,1737153067112,-151.0,0.00023,7]
[349393377,1737153067121,-151.0,0.00023,7]
[349393378,1737153067130,-151.0,0.00023,7]
[349393379,1737153067140,-7438.69753278,0.00023,3]
[349393380,1737153067149,-151.0,0.00023,7]
[349393381,1737153067159,-925.63002472,0.00023003,3]
[349393382,1737153067168,-500.0,0.00023013,3]
[349393383,1737153067178,-636.55981614,0.00023013,3]
[349393384,1737153067188,-151.0,0.00023013,7]
[349393385,1737153067197,-500.0,0.00023013,3]
[349393386,1737153067206,-500.0,0.00023013,3]
[349393387,1737153067216,-500.0,0.00023013,3]
[349393388,1737153067225,-500.0,0.00023013,3]
[349393389,1737153067235,-500.0,0.00023013,3]
[349393390,1737153067244,-500.0,0.00023013,3]
[349393391,1737153067253,-500.0,0.00023013,3]
[349393392,1737153067262,-500.0,0.00023013,3]
[349393393,1737153067273,-500.0,0.00023013,3]
[349393394,1737153067284,-500.0,0.00023013,3]
[349393395,1737153067294,-500.0,0.00023013,3]
[349393396,1737153067303,-172.25101736,0.00023013,3]
[349393397,1737153067313,-500.0,0.00023013,3]
[349393398,1737153067322,-500.0,0.00023013,3]
[349393399,1737153067332,-500.0,0.00023013,3]
[349393400,1737153067342,-500.0,0.00023013,3]
[349393401,1737153067352,-500.0,0.00023013,3]
[349393402,1737153067362,-500.0,0.00023013,3]
[349393403,1737153067373,-500.0,0.00023013,3]
[349393404,1737153067384,-500.0,0.00023013,3]
[349393405,1737153067396,-500.0,0.00023013,3]
[349393406,1737153067405,-509.44,0.00023013,3]
[349393407,1737153067415,-500.0,0.00023013,3]
[349393408,1737153067428,-500.0,0.00023013,3]
[349393409,1737153067437,-500.0,0.00023013,3]
[349393410,1737153067446,-500.0,0.00023013,3]
[349393411,1737153067456,-1370.88,0.00023013,3]
[349393412,1737153067466,-509.12,0.00023013,3]
[349393413,1737153067475,-500.0,0.00023013,3]
[349393414,1737153067484,-500.0,0.00023013,3]
[349393415,1737153067494,-1583.99,0.00023013,3]
[349393416,1737153067504,-500.0,0.00023013,3]
[349393417,1737153067514,-500.0,0.00023013,3]
[349393418,1737153067523,-3204.95,0.00023013,3]
[349393419,1737153067533,-190.51,0.00023013,2]
[349393420,1737153067542,-151.0,0.00023013,7]
[349393421,1737153067551,-500.0,0.00023013,3]
[349393422,1737153067560,-969.31,0.00023013,3]
[349393423,1737153067569,-3816.49,0.00023013,3]
[349393424,1737153067579,-447.54070796,0.00023013,3]
[349393425,1737153067588,-500.0,0.00023013,3]
[349393426,1737153067597,-500.0,0.00023013,3]
[349393427,1737153067607,-500.0,0.00023013,3]
[349393428,1737153067616,-500.0,0.00023013,3]
[349393429,1737153067625,-500.0,0.00023013,3]
[349393430,1737153067634,-500.0,0.00023013,3]
[349393431,1737153067646,-500.0,0.00023013,3]
[349393432,1737153067658,-500.0,0.00023013,3]
[349393433,1737153067670,-500.0,0.00023013,3]
[349393434,1737153067680,-1113.84,0.00023013,3]
[349393435,1737153067690,-576.43971423,0.00023013,3]
[349393436,1737153067699,-1357.5,0.00023013,3]
[349393437,1737153067708,-524.78,0.00023013,3]
[349393438,1737153067719,-2784.49,0.00023013,3]
[349393439,1737153067729,-500.0,0.00023013,3]
[349393440,1737153067738,-500.0,0.00023013,3]
[349393441,1737153067748,-1042.72,0.00023013,3]
[349393442,1737153067757,-919.12,0.00023013,3]
[349393443,1737153067767,-500.0,0.00023013,3]
[349393444,1737153067778,-500.0,0.00023013,3]
[349393445,1737153067787,-500.0,0.00023013,3]
[349393446,1737153067797,-458.48301121,0.00023013,3]
[349393447,1737153067806,-500.0,0.00023013,3]
[349393448,1737153067816,-500.0,0.00023013,3]
[349393449,1737153067826,-500.0,0.00023013,3]
[349393450,1737153067835,-1298.93,0.00023013,3]
[349393451,1737153067845,-500.0,0.00023013,3]
[349393452,1737153067855,-500.0,0.00023013,3]
[349393453,1737153067865,-208.62005002,0.00023013,3]
[349393454,1737153067876,-629.53,0.00023013,3]
[349393455,1737153067886,-551.74,0.00023013,3]
[349393456,1737153067895,-1197.63,0.00023013,3]
[349393457,1737153067973,-586.78,0.00023013,3]
[349393458,1737153067983,-925.63002472,0.00023072,3]
[349393459,1737153067993,-281.16817966,0.00023135,2]
[349393460,1737153068002,-925.63002472,0.00023141,3]
[349393461,1737153068012,-212.198118,0.0002315,7]
[349393462,1737153068022,-212.198118,0.0002315,7]
[349393463,1737153068032,-500.0,0.0002315,3]
[349393464,1737153068042,-151.0,0.0002315,7]
[349393465,1737153068052,-501.56,0.0002315,3]
[349393466,1737153068062,-176.75462002,0.0002315,3]
[349393467,1737153068072,-500.0,0.0002315,3]
[349393468,1737153068082,-500.0,0.0002315,3]
[349393469,1737153068091,-500.0,0.0002315,3]
[349393470,1737153068100,-500.0,0.0002315,3]
[349393471,1737153068110,-500.0,0.0002315,3]
[349393472,1737153068119,-500.0,0.0002315,3]
[349393473,1737153068129,-375.54436515,0.0002315,3]
[349393474,1737153068139,-500.0,0.0002315,3]
[349393475,1737153068148,-537.913445,0.0002315,2]
[349393476,1737153068158,-537.913445,0.0002315,2]
[349393477,1737153068167,-500.0,0.0002315,3]
[349393478,1737153068177,-500.0,0.0002315,3]
[349393479,1737153068187,-181.086533,0.0002315,7]
[349393480,1737153068197,-151.0,0.0002315,7]
[349393481,1737153068206,-500.0,0.0002315,3]
[349393482,1737153068215,-181.086533,0.0002315,7]
[349393483,1737153068225,-500.0,0.0002315,3]
[349393484,1737153068234,-242.841273,0.0002315,7]
[349393485,1737153068243,-500.0,0.0002315,3]
[349393486,1737153068253,-500.0,0.0002315,3]
[349393487,1737153068264,-1082.785434,0.0002315,7]
[349393488,1737153068275,-391.526914,0.0002315,7]
[349393489,1737153068285,-1082.785434,0.0002315,7]
[349393490,1737153068295,-391.526914,0.0002315,7]
[349393491,1737153068304,-212.032668,0.0002315,7]
[349393492,1737153068314,-500.0,0.0002315,3]
[349393493,1737153068323,-212.032668,0.0002315,7]
[349393494,1737153068332,-480.42951899,0.0002315,3]
[349393495,1737153068342,-500.0,0.0002315,3]
[349393496,1737153068353,-509.44,0.0002315,3]
[349393497,1737153068363,-500.0,0.0002315,3]
[349393498,1737153068374,-612.96291,0.0002315,7]
[349393499,1737153068384,-500.0,0.0002315,3]
[349393500,1737153068394,-612.96291,0.0002315,7]
[349393501,1737153068404,-151.0,0.0002315,7]
[349393502,1737153068413,-500.0,0.0002315,3]
[349393503,1737153068427,-500.0,0.0002315,3]
[349393504,1737153068437,-1370.88,0.0002315,3]
[349393505,1737153068447,-509.12,0.0002315,3]
[349393506,1737153068456,-500.0,0.0002315,3]
[349393507,1737153068467,-500.0,0.0002315,3]
[349393508,1737153068476,-1583.99,0.0002315,3]
[349393509,1737153068487,-500.0,0.0002315,3]
[349393510,1737153068498,-492.946776,0.0002315,7]
[349393511,1737153068508,-492.946776,0.0002315,7]
[349393512,1737153068517,-236.07117337,0.0002315,3]
[349393513,1737153068527,-3204.95,0.0002315,3]
[349393514,1737153068536,-500.0,0.0002315,3]
[349393515,1737153068546,-969.31,0.0002315,3]
[349393516,1737153068555,-151.569278,0.0002315,7]
[349393517,1737153068564,-3816.49,0.0002315,3]
[349393518,1737153068573,-151.569278,0.0002315,7]
[349393519,1737153068583,-151.0,0.0002315,7]
[349393520,1737153068592,-500.0,0.0002315,3]
[349393521,1737153068602,-500.0,0.0002315,3]
[349393522,1737153068611,-151.0,0.0002315,7]
[349393523,1737153068621,-500.0,0.0002315,3]
[349393524,1737153068630,-500.0,0.0002315,3]
[349393525,1737153068639,-500.0,0.0002315,3]
[349393526,1737153068650,-387.40730077,0.0002315,3]
[349393527,1737153068659,-500.0,0.0002315,3]
[349393528,1737153068669,-500.0,0.0002315,3]
[349393529,1737153068680,-500.0,0.0002315,3]
[349393530,1737153068689,-1113.84,0.0002315,3]
[349393531,1737153068699,-545.779231,0.0002315,7]
[349393532,1737153068708,-545.779231,0.0002315,7]
[349393533,1737153068718,-1357.5,0.0002315,3]
[349393534,1737153068728,-524.78,0.0002315,3]
[349393535,1737153068738,-2784.49,0.0002315,3]
[349393536,1737153068749,-500.0,0.0002315,3]
[349393537,1737153068759,-500.0,0.0002315,3]
[349393538,1737153068768,-1042.72,0.0002315,3]
[349393539,1737153068777,-919.12,0.0002315,3]
[349393540,1737153068787,-500.0,0.0002315,3]
[349393541,1737153068797,-590.05,0.0002315,3]
[349393542,1737153068806,-500.0,0.0002315,3]
[349393543,1737153068816,-500.0,0.0002315,3]
[349393544,1737153068825,-500.0,0.0002315,3]
[349393545,1737153068835,-500.0,0.0002315,3]
[349393546,1737153068844,-1298.93,0.0002315,3]
[349393547,1737153068854,-500.0,0.0002315,3]
[349393548,1737153068863,-500.0,0.0002315,3]
[349393549,1737153068872,-629.53,0.0002315,3]
[349393550,1737153068882,-1197.63,0.0002315,3]
[349393551,1737153068891,-586.78,0.0002315,3]
[349393552,1737153068901,-1200.0,0.00023178,2]
[349393553,1737153068910,-925.63002472,0.0002321,3]
[349393554,1737153068920,-1000.0,0.00023243,2]
[349393555,1737153068930,-151.0,0.00023279,7]
[349393556,1737153068940,-173.165989,0.00023279,7]
[349393557,1737153068950,-173.165989,0.00023279,7]
[349393558,1737153068959,-925.63002472,0.00023279,3]
[349393559,1737153068968,-151.0,0.00023287,7]
[349393560,1737153068978,-500.0,0.00023287,3]
[349393561,1737153068988,-151.0,0.00023287,7]
[349393562,1737153068997,-619.292312,0.00023287,7]
[349393563,1737153069007,-619.292312,0.00023287,7]
[349393564,1737153069016,-277.472178,0.00023287,7]
[349393565,1737153069026,-277.472178,0.00023287,7]
[349393566,1737153069035,-341.830555,0.00023287,7]
[349393567,1737153069045,-341.830555,0.00023287,7]
[349393568,1737153069055,-500.0,0.00023287,3]
[349393569,1737153069065,-558.02,0.00023287,3]
[349393570,1737153069075,-500.0,0.00023287,3]
[349393571,1737153069084,-500.0,0.00023287,3]
[349393572,1737153069093,-500.0,0.00023287,3]
[349393573,1737153069103,-500.0,0.00023287,3]
[349393574,1737153069112,-500.0,0.00023287,3]
[349393575,1737153069121,-500.0,0.00023287,3]
[349393576,1737153069130,-500.0,0.00023287,3]
[349393577,1737153069139,-500.0,0.00023287,3]
[349393578,1737153069148,-500.0,0.00023287,3]
[349393579,1737153069157,-500.0,0.00023287,3]
[349393580,1737153069166,-500.0,0.00023287,3]
[349393581,1737153069242,-500.0,0.00023287,3]
[349393582,1737153069252,-509.44,0.00023287,3]
[349393583,1737153069263,-500.0,0.00023287,3]
[349393584,1737153069273,-500.0,0.00023287,3]
[349393585,1737153069283,-500.0,0.00023287,3]